fUST/lending_fUST_20250531
["ID","MTS","AMOUNT","RATE_DAILY","PERIOD"]
[363329834,1748677848901,-1100.0,0.00020356,2]
[363329835,1748677848911,-3166.33177879,0.00020356,2]
[363329836,1748677848921,-207.4,0.00020391,2]
[363329837,1748677848931,-5000.0,0.00020391,2]
[363329838,1748677848941,-4892.79062675,0.00020391,2]
[363329839,1748677848950,-201.05851625,0.00020391,2]
[363329840,1748677848960,-173.216913,0.00020547,2]
[363329841,1748677848970,-173.216913,0.00020547,2]
[363329842,1748677848980,-1598.13938,0.00020547,2]
[363329843,1748677848990,-1598.13938,0.00020547,2]
[363329844,1748677849000,-161.87132,0.00020547,2]
[363329845,1748677849010,-161.87132,0.00020547,2]
[363329846,1748677849019,-151.0,0.00020547,2]
[363329847,1748677849029,-430.0,0.00020547,2]
[363329848,1748677849039,-1032.37,0.00020547,2]
[363329849,1748677849048,-972.6,0.00020547,2]
[363329850,1748677849058,-752.9,0.00020547,2]
[363329851,1748677849067,-430.0,0.00020547,2]
[363329852,1748677849076,-492.67,0.00020547,2]
[363329853,1748677849086,-3128.82,0.00020547,2]
[363329854,1748677849096,-995.13,0.00020547,2]
[363329855,1748677849105,-1581.64,0.00020547,2]
[363329856,1748677849116,-714.49,0.00020547,2]
[363329857,1748677849125,-1153.87,0.00020547,2]
[363329858,1748677849135,-430.0,0.00020547,2]
[363329859,1748677849145,-462.03,0.00020547,2]
[363329860,1748677849155,-430.0,0.00020547,2]
[363329861,1748677849164,-430.0,0.00020547,2]
[363329862,1748677849174,-482.77,0.00020547,2]
[363329863,1748677849183,-4877.47,0.00020547,2]
[363329864,1748677849193,-430.0,0.00020547,2]
[363329865,1748677849202,-430.0,0.00020547,2]
[363329866,1748677849212,-521.38,0.00020547,2]
[363329867,1748677849221,-616.06,0.00020547,2]
[363329868,1748677849231,-430.0,0.00020547,2]
[363329869,1748677849241,-852.09,0.00020547,2]
[363329870,1748677849250,-527.7436298,0.00020548,19]
[363329871,1748677849259,-157.5499743,0.00020685,2]
[363329872,1748677849269,-250.0,0.00020727,2]
[363329873,1748677849278,-527.7436298,0.0002074,21]
[363329874,1748677849288,-382.885627,0.00020821,2]
[363329875,1748677849298,-151.0,0.00020821,2]
[363329876,1748677849307,-430.0,0.00020821,2]
[363329877,1748677849317,-1032.37,0.00020821,2]
[363329878,1748677849327,-972.6,0.00020821,2]
[363329879,1748677849336,-752.9,0.00020821,2]
[363329880,1748677849346,-430.0,0.00020821,2]
[363329881,1748677849356,-492.67,0.00020821,2]
[363329882,1748677849365,-3128.82,0.00020821,2]
[363329883,1748677849376,-995.13,0.00020821,2]
[363329884,1748677849385,-1581.64,0.00020821,2]
[363329885,1748677849395,-714.49,0.00020821,2]
[363329886,1748677849404,-1153.87,0.00020821,2]
[363329887,1748677849413,-430.0,0.00020821,2]
[363329888,1748677849422,-462.03,0.00020821,2]
[363329889,1748677849431,-430.0,0.00020821,2]
[363329890,1748677849441,-443.4,0.00020821,2]
[363329891,1748677849450,-482.77,0.00020821,2]
[363329892,1748677849459,-4877.47,0.00020821,2]
[363329893,1748677849468,-430.0,0.00020821,2]
[363329894,1748677849477,-430.0,0.00020821,2]
[363329895,1748677849487,-521.38,0.00020821,2]
[363329896,1748677849496,-616.06,0.00020821,2]
[363329897,1748677849506,-430.0,0.00020821,2]
[363329898,1748677849515,-852.09,0.00020821,2]
[363329899,1748677849526,-999.62091595,0.00020851,5]
[363329900,1748677849537,-151.0,0.000209,3]
[363329901,1748677849548,-157.5499743,0.00020904,2]
[363329902,1748677849559,-527.7436298,0.00020931,22]
[363329903,1748677849569,-5000.0,0.00020939,2]
[363329904,1748677849579,-157.5499743,0.00020959,2]
[363329905,1748677849588,-430.0,0.00021095,2]
[363329906,1748677849598,-1032.37,0.00021095,2]
[363329907,1748677849608,-972.6,0.00021095,2]
[363329908,1748677849618,-752.9,0.00021095,2]
[363329909,1748677849627,-430.0,0.00021095,2]
[363329910,1748677849637,-492.67,0.00021095,2]
[363329911,1748677849647,-3128.82,0.00021095,2]
[363329912,1748677849656,-995.13,0.00021095,2]
[363329913,1748677849666,-1581.64,0.00021095,2]
[363329914,1748677849675,-714.49,0.00021095,2]
[363329915,1748677849685,-1153.87,0.00021095,2]
[363329916,1748677849695,-430.0,0.00021095,2]
[363329917,1748677849704,-462.03,0.00021095,2]
[363329918,1748677849716,-430.0,0.00021095,2]
[363329919,1748677849726,-482.77,0.00021095,2]
[363329920,1748677849735,-4877.47,0.00021095,2]
[363329921,1748677849744,-430.0,0.00021095,2]
[363329922,1748677849754,-430.0,0.00021095,2]
[363329923,1748677849764,-521.38,0.00021095,2]
[363329924,1748677849773,-616.06,0.00021095,2]
[363329925,1748677849783,-430.0,0.00021095,2]
[363329926,1748677849793,-852.09,0.00021095,2]
[363329927,1748677849803,-600.0,0.0002112,2]
[363329928,1748677849812,-593.6840161,0.00021121,2]
[363329929,1748677849821,-527.7436298,0.00021123,24]
[363329930,1748677849831,-157.5499743,0.00021123,2]
[363329931,1748677849839,-157.5499743,0.00021233,2]
[363329932,1748677849847,-177.98140521,0.00021233,2]
[363329933,1748677849856,-500.0,0.00021243,2]
[363329934,1748677849863,-306.0,0.0002126,2]
[363329935,1748677849872,-500.0,0.0002128,2]
[363329936,1748677849881,-151.0,0.000213,3]
[363329937,1748677849889,-527.7436298,0.00021315,25]
[363329938,1748677849897,-500.0,0.00021318,2]
[363329939,1748677849906,-575.30694928,0.00021318,2]
[363329940,1748677849915,-500.0,0.00021324,2]
[363329941,1748677849924,-500.0,0.00021324,2]
[363329942,1748677849932,-160.19413256,0.00021324,2]
[363329943,1748677849940,-500.0,0.00021324,2]
[363329944,1748677849948,-500.0,0.00021324,2]
[363329945,1748677849957,-600.0,0.0002134,2]
[363329946,1748677849965,-500.0,0.00021342,2]
[363329947,1748677849974,-500.0,0.00021342,2]
[363329948,1748677849982,-157.5499743,0.00021342,2]
[363329949,1748677849991,-158.4581234,0.00021342,2]
[363329950,1748677849999,-176.4540852,0.00021342,2]
[363329951,1748677850007,-153.0,0.00021342,2]
[363329952,1748677850017,-153.0,0.00021342,2]
[363329953,1748677850024,-153.0,0.00021342,2]
[363329954,1748677850031,-176.4540852,0.00021342,2]
[363329955,1748677850038,-158.4581234,0.00021342,2]
[363329956,1748677850045,-153.0,0.00021342,2]
[363329957,1748677850054,-158.1883862,0.00021342,2]
[363329958,1748677850063,-153.0,0.00021342,2]
[363329959,1748677850072,-176.4540852,0.00021342,2]
[363329960,1748677850083,-153.0,0.00021342,2]
[363329961,1748677850092,-657.2839026,0.00021342,2]
[363329962,1748677850102,-176.0432544,0.00021342,2]
[363329963,1748677850111,-162.6182772,0.00021342,2]
[363329964,1748677850121,-153.0,0.00021342,2]
[363329965,1748677850130,-176.4540852,0.00021342,2]
[363329966,1748677850140,-312.5513002,0.00021342,2]
[363329967,1748677850149,-153.0,0.00021342,2]
[363329968,1748677850159,-153.0,0.00021342,2]
[363329969,1748677850168,-153.0,0.00021342,2]
[363329970,1748677850178,-153.0,0.00021342,2]
[363329971,1748677850187,-306.0,0.00021342,2]
[363329972,1748677850196,-500.0,0.00021361,2]
[363329973,1748677850206,-500.0,0.00021361,2]
[363329974,1748677850215,-500.0,0.00021361,2]
[363329975,1748677850226,-176.25974023,0.00021361,2]
[363329976,1748677850235,-500.0,0.00021361,2]
[363329977,1748677850245,-500.0,0.00021361,2]
[363329978,1748677850255,-600.0,0.00021361,2]
[363329979,1748677850264,-500.0,0.00021361,2]
[363329980,1748677850274,-500.0,0.00021361,2]
[363329981,1748677850283,-500.0,0.00021361,2]
[363329982,1748677850293,-500.0,0.00021361,2]
[363329983,1748677850302,-528.85647862,0.00021361,2]
[363329984,1748677850312,-500.0,0.00021361,2]
[363329985,1748677850321,-500.0,0.00021361,2]
[363329986,1748677850330,-701.376749,0.00021369,2]
[363329987,1748677850339,-570.11,0.00021369,2]
[363329988,1748677850348,-1032.37,0.00021369,2]
[363329989,1748677850358,-972.6,0.00021369,2]
[363329990,1748677850367,-752.9,0.00021369,2]
[363329991,1748677850377,-430.0,0.00021369,2]
[363329992,1748677850388,-492.67,0.00021369,2]
[363329993,1748677850398,-3128.82,0.00021369,2]
[363329994,1748677850408,-995.13,0.00021369,2]
[363329995,1748677850417,-1581.64,0.00021369,2]
[363329996,1748677850426,-714.49,0.00021369,2]
[363329997,1748677850436,-1153.87,0.00021369,2]
[363329998,1748677850446,-430.0,0.00021369,2]
[363329999,1748677850455,-462.03,0.00021369,2]
[363330000,1748677850465,-430.0,0.00021369,2]
[363330001,1748677850474,-482.77,0.00021369,2]
[363330002,1748677850483,-4877.47,0.00021369,2]
[363330003,1748677850492,-430.0,0.00021369,2]
[363330004,1748677850501,-430.0,0.00021369,2]
[363330005,1748677850511,-521.38,0.00021369,2]
[363330006,1748677850520,-616.06,0.00021369,2]
[363330007,1748677850529,-430.0,0.00021369,2]
[363330008,1748677850538,-852.09,0.00021369,2]
[363330009,1748677850547,-1100.0,0.00021452,2]
[363330010,1748677850556,-5000.0,0.00021487,2]
[363330011,1748677850565,-151.0,0.000215,4]
[363330012,1748677850574,-151.0,0.000215,4]
[363330013,1748677850583,-1111.984706,0.000215,2]
[363330014,1748677850592,-151.0,0.000215,4]
[363330015,1748677850601,-527.7436298,0.00021507,26]
[363330016,1748677850611,-157.5499743,0.00021507,2]
[363330017,1748677850620,-2004.648516,0.0002156,3]
[363330018,1748677850629,-600.0,0.0002156,2]
[363330019,1748677850638,-157.5499743,0.00021562,2]
[363330020,1748677850648,-173.216913,0.000216,2]
[363330021,1748677850657,-173.216913,0.000216,2]
[363330022,1748677850666,-161.87132,0.000216,2]
[363330023,1748677850676,-161.87132,0.000216,2]
[363330024,1748677850685,-151.0,0.000216,2]
[363330025,1748677850694,-593.6840161,0.00021637,2]
[363330026,1748677850703,-1598.13938,0.00021643,2]
[363330027,1748677850715,-1598.13938,0.00021643,2]
[363330028,1748677850724,-921.36938014,0.00021643,2]
[363330029,1748677850748,-430.0,0.0001863,2]
[363330030,1748677850759,-111.00061986,0.00021643,2]
[363330031,1748677850768,-972.6,0.00021643,2]
[363330032,1748677850777,-752.9,0.00021643,2]
[363330033,1748677850786,-248.29606011,0.00021643,2]
[363330034,1748677850797,-492.67,0.00021643,2]
[363330035,1748677850807,-3128.82,0.00021643,2]
[363330036,1748677850815,-995.13,0.00021643,2]
[363330037,1748677850825,-1581.64,0.00021643,2]
[363330038,1748677850834,-714.49,0.00021643,2]
[363330039,1748677850843,-1153.87,0.00021643,2]
[363330040,1748677850851,-545.84,0.00021643,2]
[363330041,1748677850860,-462.03,0.00021643,2]
[363330042,1748677850870,-430.0,0.00021643,2]
[363330043,1748677850879,-482.77,0.00021643,2]
[363330044,1748677850888,-4877.47,0.00021643,2]
[363330045,1748677850898,-430.0,0.00021643,2]
[363330046,1748677850907,-430.0,0.00021643,2]
[363330047,1748677850916,-521.38,0.00021643,2]
[363330048,1748677850925,-616.06,0.00021643,2]
[363330049,1748677850934,-430.0,0.00021643,2]
[363330050,1748677850943,-852.09,0.00021643,2]
[363330051,1748677850952,-527.7436298,0.00021699,28]
[363330052,1748677850962,-151.0,0.000217,3]
[363330053,1748677850971,-593.6840163,0.00021725,2]
[363330054,1748677850980,-215.0738,0.0002176,2]
[363330055,1748677850989,-24873.14374022,0.00021778,2]
[363330056,1748677850999,-1144.77,0.0002178,2]
[363330057,1748677851008,-157.5499743,0.00021781,2]
[363330058,1748677851017,-189.90908912,0.00021791,2]
[363330059,1748677851026,-162.08606629,0.00021817,2]
[363330060,1748677851035,-1000.0,0.00021871,2]
[363330061,1748677851044,-1000.0,0.00021871,2]
[363330062,1748677851054,-1000.0,0.00021871,2]
[363330063,1748677851063,-1000.0,0.00021871,2]
[363330064,1748677851072,-382.885627,0.00021872,2]
[363330065,1748677851081,-151.0,0.00021872,2]
[363330066,1748677851091,-1152.0,0.00021889,2]
[363330067,1748677851100,-200.0,0.0002189,3]
[363330068,1748677851109,-1000.0,0.0002189,2]
[363330069,1748677851118,-1000.0,0.0002189,2]
[363330070,1748677851127,-527.7436298,0.0002189,29]
[363330071,1748677851247,-364.2452897,0.0002189,2]
[363330072,1748677851257,-1000.0,0.00021909,2]
[363330073,1748677851266,-1000.0,0.00021909,2]
[363330074,1748677851276,-502.33839711,0.00021909,2]
[363330075,1748677851285,-1200.0,0.00021909,2]
[363330076,1748677851294,-1000.0,0.00021909,2]
[363330077,1748677851303,-1000.0,0.00021909,2]
[363330078,1748677851313,-1000.0,0.00021909,2]
[363330079,1748677851322,-1000.0,0.00021909,2]
[363330080,1748677851331,-1000.0,0.00021909,2]
[363330081,1748677851341,-1000.0,0.00021909,2]
[363330082,1748677851350,-1000.0,0.00021909,2]
[363330083,1748677851360,-701.376749,0.00021917,2]
[363330084,1748677851370,-200.0,0.00021917,2]
[363330085,1748677851379,-578.01,0.00021917,2]
[363330086,1748677851388,-1032.37,0.00021917,2]
[363330087,1748677851397,-972.6,0.00021917,2]
[363330088,1748677851407,-752.9,0.00021917,2]
[363330089,1748677851416,-492.67,0.00021917,2]
[363330090,1748677851426,-3128.82,0.00021917,2]
[363330091,1748677851435,-995.13,0.00021917,2]
[363330092,1748677851444,-1581.64,0.00021917,2]
[363330093,1748677851454,-714.49,0.00021917,2]
[363330094,1748677851463,-698.68927586,0.00021917,2]
[363330095,1748677851665,-300.0,0.00016437,2]
[363330096,1748677851674,-221.6115906,0.000179,2]
[363330097,1748677851686,-2720.20611434,0.000179,2]
[363330098,1748677851696,-420.0,0.00017963,2]
[363330099,1748677851706,-2941.81770494,0.00018141,2]
[363330100,1748677851718,-2941.81770494,0.00018383,2]
[363330101,1748677851727,-2941.81770494,0.00018624,2]
[363330102,1748677851737,-2941.81770494,0.00018866,2]
[363330103,1748677851746,-430.0,0.00018904,2]
[363330104,1748677851757,-2941.81770494,0.00019107,2]
[363330105,1748677851767,-430.0,0.00019178,2]
[363330106,1748677851776,-2941.81770494,0.00019348,2]
[363330107,1748677851785,-430.0,0.00019452,2]
[363330108,1748677851794,-2941.81770494,0.0001959,2]
[363330109,1748677851804,-432.0,0.00019631,2]
[363330110,1748677851813,-503.67798887,0.00019726,2]
[363330111,1748677851823,-2941.81770494,0.00019831,2]
[363330112,1748677851832,-2941.81770494,0.00020072,2]
[363330113,1748677851842,-2941.81770494,0.00020314,3]
[363330114,1748677851851,-2941.81770494,0.00020555,3]
[363330115,1748677851860,-2941.81770494,0.00020797,4]
[363330116,1748677851869,-2941.81770494,0.00021038,4]
[363330117,1748677851880,-2941.81770494,0.00021279,5]
[363330118,1748677851890,-2941.81770494,0.00021521,5]
[363330119,1748677851900,-455.18072414,0.00021917,2]
[363330120,1748677851911,-462.03,0.00021917,2]
[363330121,1748677851921,-430.0,0.00021917,2]
[363330122,1748677851930,-482.77,0.00021917,2]
[363330123,1748677851939,-500.0,0.00021917,2]
[363330124,1748677851949,-402.66404903,0.00021917,2]
[363330125,1748677851958,-4877.47,0.00021917,2]
[363330126,1748677851967,-430.0,0.00021917,2]
[363330127,1748677851977,-452.51357919,0.00021917,2]
[363330128,1748677851986,-521.38,0.00021917,2]
[363330129,1748677851995,-616.06,0.00021917,2]
[363330130,1748677852004,-430.0,0.00021917,2]
[363330131,1748677852013,-852.09,0.00021917,2]
[363330132,1748677852022,-962.0,0.00021925,2]
[363330133,1748677852032,-2227.0,0.00021925,2]
[363330134,1748677852041,-708.0,0.00021925,2]
[363330135,1748677852050,-150.0,0.00021925,2]
[363330136,1748677852059,-150.0,0.00021925,2]
[363330137,1748677852069,-150.0,0.00021925,2]
[363330138,1748677852079,-173.216913,0.00021969,7]
[363330139,1748677852088,-173.216913,0.00021969,7]
[363330140,1748677852098,-161.87132,0.00021969,7]
[363330141,1748677852108,-161.87132,0.00021969,7]
[363330142,1748677852117,-151.0,0.00021969,7]
[363330143,1748677852127,-500.0,0.00021973,2]
[363330144,1748677852136,-500.0,0.00021973,2]
[363330145,1748677852145,-500.0,0.00021973,2]
[363330146,1748677852155,-500.0,0.00021973,2]
[363330147,1748677852165,-500.0,0.00021973,2]
[363330148,1748677852175,-347.47889072,0.00021973,2]
[363330149,1748677852185,-502.26417517,0.00021973,2]
[363330150,1748677852195,-500.0,0.00021973,2]
[363330151,1748677852204,-500.0,0.00021973,2]
[363330152,1748677852213,-500.0,0.00021973,2]
[363330153,1748677852223,-500.0,0.00021973,2]
[363330154,1748677852232,-501.67135089,0.00021973,2]
[363330155,1748677852241,-500.0,0.00021973,2]
[363330156,1748677852251,-500.0,0.00021973,2]
[363330157,1748677852260,-500.0,0.00021973,2]
[363330158,1748677852270,-500.0,0.00021973,2]
[363330159,1748677852279,-500.0,0.00021973,2]
[363330160,1748677852289,-500.0,0.00021973,2]
[363330161,1748677852298,-341.58993269,0.00021973,2]
[363330162,1748677852308,-160.0,0.00021995,3]
[363330163,1748677852318,-160.0,0.00021995,5]
[363330164,1748677852328,-68362.77548078,0.00021998,2]
[363330165,1748677852338,-2200.0,0.00021998,2]
[363330166,1748677852348,-382.885627,0.00021998,7]
[363330167,1748677852358,-151.0,0.00021998,7]
[363330168,1748677852367,-152.087997,0.00021998,7]
[363330169,1748677852377,-151.0,0.00021998,7]
[363330170,1748677852388,-151.0,0.00021998,7]
[363330171,1748677852397,-155.0,0.00021998,2]
[363330172,1748677852407,-500.0,0.00022,8]
[363330173,1748677852416,-24814.04028823,0.00022,2]
[363330174,1748677852426,-66563.42724951,0.00022,2]
[363330176,1748677936918,10000.0,0.00021918,60]
[363330177,1748677951026,10000.0,0.00021918,60]
[363330178,1748677960197,10000.0,0.00021918,60]
[363330180,1748678323921,161.441727,0.00013699,2]
[363330182,1748678431526,200.0,0.00023642,120]
[363330183,1748678491550,200.0,0.00023358,120]
[363330184,1748678611335,200.0,0.00024096,120]
[363330186,1748678760719,34222.78557,0.00024649,120]
[363330187,1748678829145,-229.79850811,0.00015416,2]
[363330188,1748678850178,-818.45886175,0.00015416,2]
[363330189,1748678851112,-151.74263014,0.00015416,2]
[363330190,1748678851135,-300.0,0.00015416,2]
[363330191,1748678851157,-300.0,0.00015416,2]
[363330192,1748678851179,-520.23528477,0.00015417,2]
[363330193,1748678854128,-5399.86957646,0.00015417,2]
[363330195,1748678945137,-1000.0,0.00015273,2]
[363330196,1748678945158,-430.0,0.00015361,2]
[363330197,1748678945179,-1349.62122227,0.00015417,2]
[363330198,1748678947105,-2730.2739165,0.00015417,2]
[363330199,1748678947127,-300.0,0.00015435,2]
[363330200,1748678947149,-300.0,0.00015435,2]
[363330201,1748678947173,-230.8571669,0.00015437,2]
[363330202,1748678947194,-348.264775,0.00016,30]
[363330203,1748678947215,-219.41007927,0.000162,2]
[363330204,1748678947235,-66.89746233,0.000162,2]
[363330205,1748678961100,-152.51261693,0.000162,2]
[363330206,1748678961122,-476.07155327,0.00016334,2]
[363330216,1748679032689,-117.93285799,0.00016334,2]
[363330217,1748679032699,-234.90820895,0.00016338,2]
[363330218,1748679032709,-3435.30154762,0.00016338,2]
[363330219,1748679032718,-160.0,0.00016393,2]
[363330220,1748679032728,-1000.0,0.00016399,2]
[363330221,1748679032738,-243.0,0.00016436,2]
[363330222,1748679032747,-300.0,0.00016436,2]
[363330223,1748679032757,-183.0,0.00016436,2]
[363330224,1748679032767,-536.7000695,0.00016437,2]
[363330225,1748679032776,-500.0,0.00016437,2]
[363330226,1748679032786,-416.59645725,0.00016437,2]
[363330227,1748679032795,-500.0,0.00016437,2]
[363330228,1748679032805,-500.0,0.00016437,2]
[363330229,1748679032814,-500.0,0.00016437,2]
[363330230,1748679032824,-500.0,0.00016437,2]
[363330231,1748679032834,-500.0,0.00016437,2]
[363330232,1748679032843,-500.0,0.00016437,2]
[363330233,1748679032852,-500.0,0.00016437,2]
[363330234,1748679032861,-160.0,0.00016437,2]
[363330235,1748679032871,-193.79178054,0.00016437,2]
[363330236,1748679032884,-500.0,0.00016437,2]
[363330237,1748679032893,-500.0,0.00016437,2]
[363330238,1748679032902,-426.81926375,0.00016437,2]
[363330239,1748679032912,-430.0,0.00016438,2]
[363330240,1748679032922,-430.0,0.00016438,2]
[363330242,1748679032939,-430.0,0.00016438,2]
[363330244,1748679032952,-430.0,0.00016438,2]
[363330246,1748679032962,-430.0,0.00016438,2]
[363330247,1748679032972,-420.7134093,0.00016438,2]
[363330248,1748679032982,-430.0,0.00016438,2]
[363330249,1748679032996,-430.0,0.00016438,2]
[363330250,1748679033005,-430.0,0.00016438,2]
[363330251,1748679033015,-430.0,0.00016438,2]
[363330252,1748679033025,-430.0,0.00016438,2]
[363330253,1748679033035,-430.0,0.00016438,2]
[363330254,1748679033046,-430.0,0.00016438,2]
[363330255,1748679033056,-430.0,0.00016438,2]
[363330256,1748679033066,-236.93344488,0.00016438,2]
[363330257,1748679033076,-481.96345513,0.00016438,2]
[363330258,1748679033086,-430.0,0.00016438,2]
[363330259,1748679033096,-430.0,0.00016438,2]
[363330260,1748679033107,-430.0,0.00016438,2]
[363330261,1748679033116,-430.0,0.00016438,2]
[363330262,1748679033127,-430.0,0.00016438,2]
[363330263,1748679033137,-430.0,0.00016438,2]
[363330264,1748679033147,-430.0,0.00016438,2]
[363330265,1748679033158,-430.0,0.00016438,2]
[363330266,1748679033168,-430.0,0.00016438,2]
[363330267,1748679033178,-430.0,0.00016438,2]
[363330268,1748679033189,-430.0,0.00016438,2]
[363330269,1748679033199,-430.0,0.00016438,2]
[363330270,1748679033209,-430.0,0.00016438,2]
[363330271,1748679033218,-430.0,0.00016438,2]
[363330272,1748679033228,-384.15150222,0.00016438,2]
[363330273,1748679033238,-430.0,0.00016438,2]
[363330274,1748679033248,-430.0,0.00016438,2]
[363330275,1748679033257,-192.66632329,0.00016438,2]
[363330276,1748679033267,-430.0,0.00016438,2]
[363330277,1748679033278,-430.0,0.00016438,2]
[363330278,1748679033287,-430.0,0.00016438,2]
[363330279,1748679033298,-430.0,0.00016438,2]
[363330280,1748679033308,-547.50980648,0.00016438,2]
[363330281,1748679033318,-442.67680293,0.00016438,2]
[363330282,1748679033328,-500.0,0.00016438,2]
[363330283,1748679033337,-430.0,0.00016438,2]
[363330284,1748679033347,-430.0,0.00016438,2]
[363330285,1748679033356,-201.36480667,0.00016438,2]
[363330286,1748679033371,-430.0,0.00016438,2]
[363330287,1748679033385,-430.0,0.00016438,2]
[363330288,1748679033396,-430.0,0.00016438,2]
[363330289,1748679033406,-430.0,0.00016438,2]
[363330290,1748679033418,-289.31871639,0.00016438,2]
[363330291,1748679033427,-430.0,0.00016438,2]
[363330292,1748679033438,-584.55,0.00016438,2]
[363330293,1748679033447,-430.0,0.00016438,2]
[363330294,1748679033458,-430.0,0.00016438,2]
[363330295,1748679033466,-436.11384284,0.00016438,2]
[363330296,1748679033474,-430.0,0.00016438,2]
[363330297,1748679033483,-430.0,0.00016438,2]
[363330298,1748679033493,-284.97642762,0.00016438,2]
[363330299,1748679033503,-230.71493179,0.00016438,2]
[363330300,1748679033514,-430.0,0.00016438,2]
[363330301,1748679033523,-430.0,0.00016438,2]
[363330302,1748679033533,-500.0,0.00016438,2]
[363330303,1748679033543,-430.0,0.00016438,2]
[363330304,1748679033552,-430.0,0.00016438,2]
[363330305,1748679033562,-460.0,0.00016438,2]
[363330306,1748679033573,-430.0,0.00016438,2]
[363330307,1748679033583,-430.0,0.00016438,2]
[363330308,1748679033593,-430.0,0.00016438,2]
[363330309,1748679033602,-430.0,0.00016438,2]
[363330310,1748679033616,-430.0,0.00016438,2]
[363330311,1748679033626,-430.0,0.00016438,2]
[363330312,1748679033636,-156.46840548,0.00016438,2]
[363330313,1748679033646,-507.56,0.00016438,2]
[363330314,1748679033656,-401.10380602,0.00016438,2]
[363330315,1748679033667,-430.0,0.00016438,2]
[363330316,1748679033676,-430.0,0.00016438,2]
[363330317,1748679033687,-181.85650223,0.00016438,2]
[363330318,1748679033697,-430.0,0.00016438,2]
[363330319,1748679033707,-430.0,0.00016438,2]
[363330320,1748679033717,-430.0,0.00016438,2]
[363330321,1748679033728,-430.0,0.00016438,2]
[363330322,1748679033738,-430.0,0.00016438,2]
[363330323,1748679033749,-430.0,0.00016438,2]
[363330324,1748679033759,-430.0,0.00016438,2]
[363330325,1748679033769,-482.78,0.00016438,2]
[363330326,1748679033780,-517.8481705,0.00016438,2]
[363330327,1748679033790,-430.0,0.00016438,2]
[363330328,1748679033799,-430.0,0.00016438,2]
[363330329,1748679033808,-430.0,0.00016438,2]
[363330330,1748679033818,-430.0,0.00016438,2]
[363330331,1748679033828,-430.0,0.00016438,2]
[363330332,1748679033838,-430.0,0.00016438,2]
[363330333,1748679033848,-1777.4,0.00016438,2]
[363330334,1748679033860,-430.0,0.00016438,2]
[363330335,1748679033871,-430.0,0.00016438,2]
[363330336,1748679033881,-430.0,0.00016438,2]
[363330337,1748679033891,-430.0,0.00016438,2]
[363330338,1748679033901,-430.0,0.00016438,2]
[363330339,1748679033910,-430.0,0.00016438,2]
[363330340,1748679033920,-430.0,0.00016438,2]
[363330341,1748679033930,-430.0,0.00016438,2]
[363330342,1748679033939,-430.0,0.00016438,2]
[363330343,1748679033948,-1228.74,0.00016438,2]
[363330344,1748679033958,-1053.6,0.00016438,2]
[363330345,1748679033967,-430.0,0.00016438,2]
[363330346,1748679033977,-430.0,0.00016438,2]
[363330347,1748679033987,-430.0,0.00016438,2]
[363330348,1748679033997,-430.0,0.00016438,2]
[363330349,1748679034006,-532.46,0.00016438,2]
[363330350,1748679034015,-1564.91,0.00016438,2]